fUST/lending_fUST_20251203
["ID","MTS","AMOUNT","RATE_DAILY","PERIOD"]
[395766045,1764721855999,-500.0,0.00013221,2]
[395766048,1764721856009,-500.0,0.00013221,2]
[395766050,1764721856020,-500.0,0.00013221,2]
[395766051,1764721856030,-908.16,0.00013221,2]
[395766053,1764721856039,-500.0,0.00013221,2]
[395766055,1764721856049,-500.0,0.00013221,2]
[395766057,1764721856059,-1217.46,0.00013221,2]
[395766059,1764721856069,-995.18,0.00013221,2]
[395766061,1764721856079,-3064.8,0.00013221,2]
[395766063,1764721856088,-1425.76,0.00013221,2]
[395766065,1764721856098,-1814.0,0.00013221,2]
[395766067,1764721856107,-500.0,0.00013221,2]
[395766069,1764721856117,-1913.91,0.00013221,2]
[395766071,1764721856127,-1419.99,0.00013222,2]
[395766073,1764721856137,-500.0,0.00013222,2]
[395766075,1764721856147,-500.0,0.00013222,2]
[395766078,1764721856157,-506.32,0.00013222,2]
[395766080,1764721856167,-572.02,0.00013222,2]
[395766082,1764721856178,-500.0,0.00013222,2]
[395766114,1764721856478,-500.0,0.00013222,2]
[395766117,1764721856488,-500.0,0.00013222,2]
[395766119,1764721856498,-500.0,0.00013222,2]
[395766121,1764721856508,-500.0,0.00013222,2]
[395766123,1764721856517,-500.0,0.00013222,2]
[395766125,1764721856527,-1825.59,0.00013222,2]
[395766127,1764721856536,-500.0,0.00013222,2]
[395766129,1764721856546,-500.0,0.00013222,2]
[395766131,1764721856556,-1397.17,0.00013222,2]
[395766133,1764721856566,-500.0,0.00013222,2]
[395766135,1764721856575,-520.18,0.00013222,2]
[395766136,1764721856586,-500.0,0.00013222,2]
[395766138,1764721856595,-500.0,0.00013222,2]
[395766140,1764721856605,-500.0,0.00013222,2]
[395766142,1764721856615,-500.0,0.00013222,2]
[395766144,1764721856625,-500.0,0.00013222,2]
[395766146,1764721856635,-500.0,0.00013222,2]
[395766149,1764721856644,-760.47,0.00013222,2]
[395766150,1764721856654,-838.41,0.00013222,2]
[395766152,1764721856663,-526.89,0.00013222,2]
[395766154,1764721856672,-936.54,0.00013222,2]
[395766156,1764721856682,-500.0,0.00013222,2]
[395766158,1764721856692,-934.79,0.00013222,2]
[395766160,1764721856701,-821.25,0.00013222,2]
[395766162,1764721856710,-500.0,0.00013222,2]
[395766164,1764721856720,-1386.4,0.00013222,2]
[395766166,1764721856729,-500.0,0.00013222,2]
[395766168,1764721856737,-1002.94,0.00013222,2]
[395766170,1764721856746,-500.0,0.00013222,2]
[395766172,1764721856755,-500.0,0.00013222,2]
[395766174,1764721856765,-1038.48,0.00013222,2]
[395766176,1764721856774,-921.89,0.00013222,2]
[395766178,1764721856783,-500.0,0.00013222,2]
[395766180,1764721856792,-1731.19,0.00013222,2]
[395766182,1764721856802,-1181.75,0.00013222,2]
[395766184,1764721856812,-1461.13,0.00013222,2]
[395766186,1764721856824,-1924.2,0.00013222,2]
[395766188,1764721856834,-500.0,0.00013222,2]
[395766190,1764721856843,-500.0,0.00013222,2]
[395766192,1764721856852,-755.01,0.00013222,2]
[395766194,1764721856862,-501.96,0.00013222,2]
[395766196,1764721856872,-500.0,0.00013222,2]
[395766198,1764721856881,-783.08,0.00013222,2]
[395766200,1764721856891,-1872.9,0.00013222,2]
[395766202,1764721856903,-500.0,0.00013222,2]
[395766204,1764721856913,-500.0,0.00013222,2]
[395766206,1764721856922,-1796.72,0.00013222,2]
[395766208,1764721856932,-1185.55,0.00013222,2]
[395766210,1764721856941,-742.99,0.00013222,2]
[395766212,1764721856950,-500.0,0.00013222,2]
[395766214,1764721856959,-771.81,0.00013222,2]
[395766216,1764721856968,-1603.18,0.00013222,2]
[395766218,1764721856977,-1086.48,0.00013222,2]
[395766220,1764721856986,-872.57,0.00013222,2]
[395766222,1764721856995,-1433.21,0.00013222,2]
[395766224,1764721857005,-500.0,0.00013222,2]
[395766226,1764721857014,-500.0,0.00013222,2]
[395766228,1764721857023,-500.0,0.00013222,2]
[395766230,1764721857032,-1411.75,0.00013222,2]
[395766232,1764721857042,-500.0,0.00013222,2]
[395766234,1764721857051,-5940.9,0.00013222,2]
[395766235,1764721857060,-500.0,0.00013222,2]
[395766237,1764721857070,-7462.36,0.00013222,2]
[395766239,1764721857079,-624.01,0.00013222,2]
[395766241,1764721857088,-500.0,0.00013222,2]
[395766243,1764721857098,-500.0,0.00013222,2]
[395766245,1764721857107,-1199.08,0.00013222,2]
[395766247,1764721857116,-500.0,0.00013222,2]
[395766248,1764721857126,-500.02,0.00013222,2]
[395766250,1764721857136,-1711.69,0.00013222,2]
[395766253,1764721857145,-1168.78,0.00013222,2]
[395766254,1764721857155,-500.0,0.00013222,2]
[395766257,1764721857164,-1652.67,0.00013222,2]
[395766258,1764721857174,-500.0,0.00013222,2]
[395766261,1764721857183,-500.0,0.00013222,2]
[395766263,1764721857196,-500.0,0.00013222,2]
[395766265,1764721857206,-990.01,0.00013222,2]
[395766267,1764721857217,-3894.49,0.00013222,2]
[395766268,1764721857227,-500.0,0.00013222,2]
[395766270,1764721857238,-4053.96,0.00013222,2]
[395766273,1764721857249,-500.0,0.00013223,2]
[395766275,1764721857258,-500.0,0.00013223,2]
[395766276,1764721857268,-500.0,0.00013223,2]
[395766279,1764721857278,-500.0,0.00013223,2]
[395766280,1764721857287,-696.94,0.00013223,2]
[395766283,1764721857299,-500.0,0.00013223,2]
[395766285,1764721857308,-500.0,0.00013223,2]
[395766287,1764721857318,-500.0,0.00013223,2]
[395766289,1764721857328,-500.0,0.00013223,2]
[395766290,1764721857337,-500.00430347,0.00013223,2]
[395766292,1764721857347,-500.0,0.00013223,2]
[395766294,1764721857356,-500.0,0.00013223,2]
[395766296,1764721857365,-500.0,0.00013223,2]
[395766299,1764721857377,-500.0,0.00013223,2]
[395766301,1764721857387,-772.97,0.00013223,2]
[395766302,1764721857397,-475.07380532,0.00013223,2]
[395766305,1764721857407,-505.34230446,0.00013223,2]
[395766307,1764721857416,-500.0,0.00013223,2]
[395766308,1764721857426,-500.0,0.00013223,2]
[395766310,1764721857435,-500.0,0.00013223,2]
[395766312,1764721857444,-500.0,0.00013223,2]
[395766314,1764721857454,-500.0,0.00013223,2]
[395766316,1764721857464,-500.0,0.00013223,2]
[395766318,1764721857473,-500.0,0.00013223,2]
[395766320,1764721857483,-500.0,0.00013223,2]
[395766322,1764721857492,-644.17308166,0.00013223,2]
[395766324,1764721857502,-500.0,0.00013223,2]
[395766326,1764721857511,-576.7,0.00013223,2]
[395766328,1764721857521,-500.0,0.00013223,2]
[395766330,1764721857530,-500.0,0.00013223,2]
[395766332,1764721857539,-461.15989254,0.00013223,2]
[395766334,1764721857548,-500.0,0.00013223,2]
[395766336,1764721857558,-500.0,0.00013223,2]
[395766338,1764721857568,-500.0,0.00013223,2]
[395766340,1764721857577,-500.0,0.00013223,2]
[395766342,1764721857586,-576.44,0.00013223,2]
[395766344,1764721857596,-500.0,0.00013223,2]
[395766346,1764721857605,-500.0,0.00013223,2]
[395766348,1764721857614,-500.0,0.00013223,2]
[395766349,1764721857623,-500.0,0.00013223,2]
[395766351,1764721857632,-711.99,0.00013223,2]
[395766353,1764721857643,-985.23,0.00013223,2]
[395766355,1764721857652,-500.0,0.00013223,2]
[395766357,1764721857662,-500.0,0.00013223,2]
[395766359,1764721857672,-500.0,0.00013223,2]
[395766361,1764721857682,-151.0,0.00013223,2]
[395766363,1764721857691,-500.0,0.00013223,2]
[395766365,1764721857701,-500.0,0.00013223,2]
[395766367,1764721857711,-500.0,0.00013223,2]
[395766369,1764721857720,-151.0,0.00013223,2]
[395766371,1764721857730,-238.571072,0.00013223,2]
[395766373,1764721857740,-500.0,0.00013223,2]
[395766375,1764721857749,-500.0,0.00013223,2]
[395766377,1764721857759,-500.0,0.00013223,2]
[395766379,1764721857769,-500.0,0.00013223,2]
[395766381,1764721857779,-500.0,0.00013223,2]
[395766383,1764721857789,-500.0,0.00013223,2]
[395766385,1764721857799,-500.0,0.00013223,2]
[395766387,1764721857809,-500.0,0.00013223,2]
[395766389,1764721857818,-500.0,0.00013223,2]
[395766390,1764721857828,-500.0,0.00013223,2]
[395766392,1764721857837,-500.0,0.00013223,2]
[395766394,1764721857847,-874.1,0.00013223,2]
[395766396,1764721857856,-500.0,0.00013223,2]
[395766398,1764721857866,-500.0,0.00013223,2]
[395766400,1764721857875,-669.26,0.00013223,2]
[395766402,1764721857885,-500.0,0.00013223,2]
[395766404,1764721857895,-500.0,0.00013223,2]
[395766406,1764721857905,-941.01,0.00013223,2]
[395766408,1764721857915,-1247.32,0.00013223,2]
[395766410,1764721857924,-500.0,0.00013223,2]
[395766412,1764721857933,-563.2,0.00013223,2]
[395766414,1764721857942,-716.68,0.00013223,2]
[395766416,1764721857951,-681.85,0.00013223,2]
[395766418,1764721857960,-1134.19,0.00013223,2]
[395766420,1764721857969,-1309.73,0.00013223,2]
[395766422,1764721857979,-500.0,0.00013223,2]
[395766424,1764721857988,-1186.45,0.00013223,2]
[395766426,1764721857997,-500.0,0.00013223,2]
[395766428,1764721858007,-683.53,0.00013223,2]
[395766430,1764721858016,-500.0,0.00013223,2]
[395766432,1764721858026,-500.0,0.00013223,2]
[395766434,1764721858035,-830.77,0.00013223,2]
[395766436,1764721858044,-499.97791103,0.00013223,2]
[395766438,1764721858054,-500.0,0.00013223,2]
[395766440,1764721858062,-520.31,0.00013223,2]
[395766442,1764721858072,-500.0,0.00013223,2]
[395766444,1764721858081,-735.25,0.00013223,2]
[395766446,1764721858090,-801.54,0.00013223,2]
[395766448,1764721858099,-1463.19,0.00013223,2]
[395766450,1764721858109,-583.08,0.00013223,2]
[395766451,1764721858118,-1398.91,0.00013223,2]
[395766453,1764721858128,-693.0,0.00013223,2]
[395766455,1764721858137,-500.0,0.00013223,2]
[395766457,1764721858146,-500.0,0.00013223,2]
[395766459,1764721858155,-5396.03,0.00013223,2]
[395766461,1764721858165,-500.0,0.00013223,2]
[395766464,1764721858175,-500.0,0.00013223,2]
[395766465,1764721858184,-500.0,0.00013223,2]
[395766467,1764721858193,-500.0,0.00013223,2]
[395766469,1764721858202,-4546.67,0.00013223,2]
[395766471,1764721858211,-500.0,0.00013223,2]
[395766473,1764721858221,-500.0,0.00013223,2]
[395766475,1764721858230,-582.61,0.00013223,2]
[395766477,1764721858239,-646.38,0.00013223,2]
[395766479,1764721858248,-500.0,0.00013223,2]
[395766481,1764721858257,-513.71979892,0.00013223,2]
[395766483,1764721858266,-981.43,0.00013223,2]
[395766485,1764721858275,-500.0,0.00013223,2]
[395766486,1764721858284,-500.0,0.00013223,2]
[395766488,1764721858293,-3050.61,0.00013223,2]
[395766490,1764721858303,-500.0,0.00013224,2]
[395766492,1764721858313,-500.0,0.00013224,2]
[395766494,1764721858322,-500.0,0.00013224,2]
[395766496,1764721858331,-500.0,0.00013224,2]
[395766498,1764721858340,-161.435812,0.00013224,2]
[395766500,1764721858349,-151.0,0.00013224,2]
[395766502,1764721858358,-151.0,0.00013224,2]
[395766504,1764721858367,-500.0,0.00013224,2]
[395766506,1764721858378,-249.98418201,0.00013224,2]
[395766508,1764721858387,-870.92,0.00013224,2]
[395766510,1764721858397,-546.27,0.00013224,2]
[395766512,1764721858406,-957.8,0.00013224,2]
[395766514,1764721858415,-1614.21,0.00013224,2]
[395766516,1764721858424,-1134.74,0.00013224,2]
[395766518,1764721858433,-3513.87,0.00013224,2]
[395766520,1764721858442,-1732.72,0.00013224,2]
[395766521,1764721858451,-2692.83,0.00013224,2]
[395766523,1764721858460,-500.0,0.00013224,2]
[395766526,1764721858471,-500.0,0.00013225,2]
[395766527,1764721858482,-509.47448972,0.00013225,2]
[395766529,1764721858491,-1109.12,0.00013225,2]
[395766531,1764721858502,-500.0,0.00013225,2]
[395766534,1764721858512,-516.49,0.00013225,2]
[395766536,1764721858522,-500.0,0.00013225,2]
[395766537,1764721858531,-1036.61,0.00013225,2]
[395766539,1764721858541,-865.21,0.00013225,2]
[395766541,1764721858552,-500.0,0.00013225,2]
[395766544,1764721858561,-500.0,0.00013225,2]
[395766545,1764721858571,-500.0,0.00013225,2]
[395766547,1764721858580,-607.25,0.00013225,2]
[395766549,1764721858590,-500.0,0.00013225,2]
[395766551,1764721858599,-505.74841388,0.00013225,2]
[395766553,1764721858609,-500.0,0.00013225,2]
[395766555,1764721858618,-500.0,0.00013225,2]
[395766557,1764721858628,-500.0,0.00013225,2]
[395766559,1764721858638,-500.0,0.00013225,2]
[395766561,1764721858648,-659.36,0.00013225,2]
[395766563,1764721858657,-500.0,0.00013225,2]
[395766565,1764721858667,-500.0,0.00013225,2]
[395766567,1764721858676,-500.0,0.00013225,2]
[395766568,1764721858686,-184.86417264,0.00013225,2]
[395766570,1764721858695,-500.0,0.00013225,2]
[395766572,1764721858704,-500.0,0.00013225,2]
[395766574,1764721858713,-909.93,0.00013225,2]
[395766576,1764721858723,-500.0,0.00013225,2]
[395766578,1764721858732,-504.56799427,0.00013225,2]
[395766580,1764721858741,-500.0,0.00013225,2]
[395766582,1764721858751,-500.0,0.00013225,2]
[395766584,1764721858760,-610.86,0.00013225,2]
[395766586,1764721858770,-500.0,0.00013225,2]
[395766588,1764721858781,-500.0,0.00013225,2]
[395766590,1764721858793,-500.0,0.00013225,2]
[395766592,1764721858803,-1429.53,0.00013225,2]
[395766594,1764721858813,-500.0,0.00013225,2]
[395766596,1764721858825,-500.0,0.00013225,2]
[395766598,1764721858835,-510.47,0.00013225,2]
[395766600,1764721858843,-619.72,0.00013225,2]
[395766602,1764721858853,-500.0,0.00013225,2]
[395766604,1764721858863,-500.0,0.00013225,2]
[395766605,1764721858872,-949.18,0.00013225,2]
[395766607,1764721858881,-500.0,0.00013225,2]
[395766609,1764721858890,-500.0,0.00013225,2]
[395766611,1764721858902,-500.0,0.00013225,2]
[395766613,1764721858911,-500.0,0.00013225,2]
[395766615,1764721858920,-720.88,0.00013225,2]
[395766617,1764721858930,-759.33,0.00013225,2]
[395766619,1764721858939,-779.58,0.00013225,2]
[395766621,1764721858948,-500.0,0.00013225,2]
[395766623,1764721858958,-500.0,0.00013225,2]
[395766625,1764721858967,-500.0,0.00013225,2]
[395766627,1764721858977,-245.48348267,0.00013225,2]
[395766629,1764721858986,-500.0,0.00013225,2]
[395766631,1764721858996,-628.83,0.00013225,2]
[395766633,1764721859005,-500.0,0.00013225,2]
[395766635,1764721859014,-500.0,0.00013225,2]
[395766636,1764721859024,-151.0,0.00013225,2]
[395766638,1764721859034,-151.0,0.00013225,2]
[395766640,1764721859043,-151.0,0.00013225,2]
[395766642,1764721859052,-500.0,0.00013225,2]
[395766644,1764721859062,-500.0,0.00013225,2]
[395766646,1764721859071,-500.0,0.00013225,2]
[395766648,1764721859080,-522.82,0.00013225,2]
[395766650,1764721859091,-500.0,0.00013225,2]
[395766652,1764721859101,-788.39,0.00013225,2]
[395766654,1764721859110,-848.22,0.00013225,2]
[395766656,1764721859124,-1195.8,0.00013225,2]
[395766658,1764721859133,-500.0,0.00013225,2]
[395766660,1764721859142,-500.0,0.00013225,2]
[395766662,1764721859151,-500.0,0.00013225,2]
[395766664,1764721859160,-500.0,0.00013225,2]
[395766666,1764721859169,-500.0,0.00013225,2]
[395766668,1764721859179,-500.0,0.00013225,2]
[395766670,1764721859188,-665.78,0.00013225,2]
[395766672,1764721859197,-500.0,0.00013225,2]
[395766674,1764721859206,-500.0,0.00013225,2]
[395766675,1764721859216,-722.65,0.00013225,2]
[395766678,1764721859226,-928.23,0.00013225,2]
[395766679,1764721859235,-677.65,0.00013225,2]
[395766681,1764721859245,-933.64,0.00013225,2]
[395766683,1764721859254,-500.0,0.00013225,2]
[395766685,1764721859263,-500.0,0.00013225,2]
[395766687,1764721859274,-500.0,0.00013225,2]
[395766689,1764721859283,-500.0,0.00013225,2]
[395766691,1764721859293,-1863.7,0.00013225,2]
[395766693,1764721859303,-151.0,0.00013225,2]
[395766695,1764721859312,-522.86,0.00013225,2]
[395766697,1764721859322,-151.0,0.00013225,2]
[395766699,1764721859332,-1630.92,0.00013225,2]
[395766701,1764721859341,-500.0,0.00013225,2]
[395766703,1764721859350,-892.36,0.00013225,2]
[395766705,1764721859360,-500.0,0.00013225,2]
[395766707,1764721859370,-661.6,0.00013225,2]
[395766709,1764721859379,-500.0,0.00013225,2]
[395766711,1764721859389,-500.0,0.00013225,2]
[395766713,1764721859399,-500.0,0.00013225,2]
[395766715,1764721859408,-151.0,0.00013225,2]
[395766717,1764721859418,-151.0,0.00013225,2]
[395766719,1764721859428,-833.11,0.00013225,2]
[395766721,1764721859438,-500.0,0.00013225,2]
[395766723,1764721859448,-1146.45,0.00013225,2]
[395766725,1764721859458,-500.0,0.00013225,2]
[395766727,1764721859469,-500.0,0.00013225,2]
[395766729,1764721859483,-645.94,0.00013225,2]
[395766731,1764721859496,-500.0,0.00013225,2]
[395766734,1764721859509,-741.22,0.00013225,2]
[395766736,1764721859521,-589.88,0.00013225,2]
[395766738,1764721859532,-500.0,0.00013225,2]
[395766740,1764721859544,-500.0,0.00013225,2]
[395766742,1764721859556,-500.0,0.00013225,2]
[395766744,1764721859569,-898.89,0.00013225,2]
[395766746,1764721859580,-734.43,0.00013225,2]
[395766748,1764721859591,-590.16,0.00013225,2]
[395766750,1764721859603,-639.77,0.00013225,2]
[395766752,1764721859615,-500.0,0.00013225,2]
[395766755,1764721859627,-1447.48,0.00013225,2]
[395766757,1764721859640,-500.0,0.00013225,2]
[395766759,1764721859651,-849.71,0.00013225,2]
[395766761,1764721859663,-699.29,0.00013225,2]
[395766763,1764721859675,-500.0,0.00013225,2]
[395766765,1764721859687,-500.0,0.00013225,2]
[395766767,1764721859699,-675.86,0.00013225,2]
[395766769,1764721859709,-500.0,0.00013225,2]
[395766772,1764721859721,-579.66,0.00013225,2]
[395766774,1764721859733,-500.0,0.00013225,2]
[395766776,1764721859744,-1196.44,0.00013225,2]
[395766778,1764721859755,-1133.31,0.00013225,2]
[395766780,1764721859766,-500.0,0.00013225,2]
[395766782,1764721859778,-500.0,0.00013225,2]
[395766784,1764721859790,-723.26,0.00013225,2]
[395766786,1764721859801,-500.0,0.00013225,2]
[395766788,1764721859814,-500.0,0.00013225,2]
[395766791,1764721859830,-500.0,0.00013225,2]
[395766792,1764721859842,-500.0,0.00013225,2]
[395766794,1764721859852,-717.7,0.00013225,2]
[395766797,1764721859863,-500.0,0.00013225,2]
[395766798,1764721859874,-626.48,0.00013225,2]
[395766801,1764721859886,-1919.74,0.00013225,2]
[395766803,1764721859898,-500.0,0.00013225,2]
[395766805,1764721859909,-500.0,0.00013225,2]
[395766807,1764721859920,-500.0,0.00013225,2]
[395766809,1764721859932,-595.63,0.00013225,2]
[395766811,1764721859942,-500.0,0.00013225,2]
[395766813,1764721859954,-500.0,0.00013225,2]
[395766815,1764721859966,-151.0,0.00013225,2]
[395766817,1764721859978,-714.31,0.00013225,2]
[395766819,1764721859989,-500.0,0.00013225,2]
[395766822,1764721860001,-2318.82,0.00013225,2]
[395766824,1764721860012,-682.35,0.00013225,2]
[395766825,1764721860022,-500.0,0.00013225,2]
[395766827,1764721860033,-500.0,0.00013225,2]
[395766829,1764721860043,-1720.71,0.00013225,2]
[395766832,1764721860055,-151.0,0.00013225,2]
[395766834,1764721860066,-151.0,0.00013225,2]
[395766836,1764721860078,-500.0,0.00013225,2]
[395766838,1764721860092,-151.0,0.00013225,2]
[395766840,1764721860103,-500.0,0.00013225,2]
[395766842,1764721860115,-151.0,0.00013225,2]
[395766844,1764721860125,-151.0,0.00013225,2]
[395766846,1764721860135,-151.0,0.00013225,2]
[395766848,1764721860145,-671.22,0.00013225,2]
[395766850,1764721860156,-690.55,0.00013225,2]
[395766852,1764721860167,-645.26,0.00013225,2]
[395766854,1764721860179,-500.0,0.00013225,2]
[395766856,1764721860190,-500.0,0.00013225,2]
[395766858,1764721860200,-534.43,0.00013225,2]
[395766860,1764721860211,-500.0,0.00013225,2]
[395766862,1764721860221,-1138.04,0.00013225,2]
[395766864,1764721860232,-564.74,0.00013225,2]
[395766866,1764721860243,-269.478417,0.00013225,2]
[395766868,1764721860254,-519.68,0.00013225,2]
[395766870,1764721860265,-565.52,0.00013225,2]
[395766872,1764721860274,-500.0,0.00013225,2]
[395766874,1764721860285,-782.71,0.00013225,2]
[395766876,1764721860296,-500.0,0.00013225,2]
[395766878,1764721860306,-500.0,0.00013225,2]
[395766881,1764721860318,-500.0,0.00013225,2]
[395766883,1764721860329,-500.0,0.00013225,2]
[395766885,1764721860339,-1018.98,0.00013225,2]
[395766887,1764721860349,-842.86,0.00013225,2]
[395766889,1764721860360,-500.0,0.00013225,2]
[395766891,1764721860371,-500.0,0.00013225,2]
[395766893,1764721860382,-500.0,0.00013225,2]
[395766895,1764721860393,-561.41,0.00013225,2]
[395766897,1764721860403,-717.63,0.00013225,2]
[395766899,1764721860414,-500.0,0.00013225,2]
[395766901,1764721860424,-838.1,0.00013225,2]
[395766903,1764721860436,-1033.87,0.00013225,2]
[395766905,1764721860446,-500.0,0.00013225,2]
[395766907,1764721860457,-500.0,0.00013225,2]
[395766909,1764721860467,-535.72,0.00013225,2]
[395766911,1764721860477,-500.0,0.00013225,2]
[395766913,1764721860487,-500.0,0.00013225,2]
[395766915,1764721860498,-886.22,0.00013225,2]
[395766918,1764721860511,-500.0,0.00013225,2]
[395766920,1764721860522,-500.0,0.00013225,2]
[395766922,1764721860533,-500.0,0.00013225,2]
[395766924,1764721860544,-2120.53,0.00013225,2]
[395766926,1764721860554,-500.0,0.00013225,2]
[395766928,1764721860564,-758.33,0.00013225,2]
[395766930,1764721860575,-500.0,0.00013225,2]
[395766932,1764721860586,-500.0,0.00013225,2]
[395766934,1764721860597,-500.0,0.00013225,2]
[395766936,1764721860607,-560.41,0.00013225,2]
[395766938,1764721860618,-761.88,0.00013225,2]
[395766940,1764721860628,-500.0,0.00013225,2]
[395766942,1764721860639,-201.93286099,0.00013266,2]
[395766944,1764721860649,-500.0,0.00013273,2]
[395766946,1764721860659,-500.0,0.00013273,2]
[395766948,1764721860670,-500.0,0.00013273,2]
[395766950,1764721860680,-500.0,0.00013273,2]
[395766952,1764721860690,-500.0,0.00013273,2]
[395766954,1764721860701,-501.7254418,0.00013273,2]
[395766956,1764721860712,-500.0,0.00013273,2]
[395766958,1764721860722,-500.0,0.00013273,2]
[395766960,1764721860732,-258.86741491,0.00013273,2]
[395766962,1764721860743,-500.0,0.00013273,2]
[395766964,1764721860755,-500.0,0.00013273,2]
[395766966,1764721860766,-500.0,0.00013273,2]
[395766968,1764721860777,-522.4365491,0.00013273,2]
[395766971,1764721860791,-151.0,0.00013273,2]
[395766973,1764721860811,-187.409336,0.00013273,2]
[395766975,1764721860826,-500.0,0.00013494,2]
[395766977,1764721860837,-3194.89,0.00013494,2]
[395766979,1764721860849,-1199.14,0.00013494,2]
[395766981,1764721860860,-788.94,0.00013494,2]
[395766983,1764721860878,-946.91,0.00013494,2]
[395766985,1764721860889,-500.0,0.00013494,2]
[395766987,1764721860901,-500.0,0.00013494,2]
[395766989,1764721860913,-6056.28,0.00013494,2]
[395766991,1764721860924,-4381.86,0.00013494,2]
[395766993,1764721860935,-4744.08,0.00013494,2]
[395766995,1764721860946,-500.0,0.00013494,2]
[395766997,1764721860957,-603.11,0.00013494,2]
[395766999,1764721860968,-500.0,0.00013494,2]
[395767001,1764721860979,-500.0,0.00013494,2]
[395767003,1764721860990,-1116.01,0.00013494,2]
[395767005,1764721861000,-511.67,0.00013494,2]
[395767007,1764721861011,-500.0,0.00013494,2]
[395767009,1764721861023,-500.0,0.00013494,2]
[395767011,1764721861033,-767.54,0.00013494,2]
[395767013,1764721861044,-500.0,0.00013494,2]
[395767015,1764721861055,-1729.5,0.00013495,2]
[395767017,1764721861066,-1354.71,0.00013495,2]
[395767019,1764721861077,-500.0,0.00013495,2]
[395767021,1764721861088,-500.0,0.00013495,2]
[395767023,1764721861098,-1199.35,0.00013495,2]
[395767025,1764721861109,-1353.27,0.00013495,2]
[395767027,1764721861119,-779.11,0.00013495,2]
[395767030,1764721861129,-820.07,0.00013495,2]
[395767032,1764721861140,-2083.09,0.00013495,2]
[395767033,1764721861150,-3250.11,0.00013495,2]
[395767036,1764721861160,-507.99,0.00013495,2]
[395767038,1764721861171,-500.0,0.00013495,2]
[395767040,1764721861181,-500.0,0.00013495,2]
[395767042,1764721861191,-500.0,0.00013495,2]
[395767044,1764721861201,-908.16,0.00013495,2]
[395767046,1764721861212,-500.0,0.00013495,2]
[395767048,1764721861226,-500.0,0.00013495,2]
[395767050,1764721861236,-1217.46,0.00013495,2]
[395767052,1764721861248,-995.18,0.00013495,2]
[395767054,1764721861259,-3064.8,0.00013495,2]
[395767056,1764721861270,-1425.76,0.00013495,2]
[395767058,1764721861281,-1814.0,0.00013495,2]
[395767060,1764721861291,-500.0,0.00013495,2]
[395767062,1764721861301,-1913.91,0.00013495,2]
[395767064,1764721861312,-1419.99,0.00013496,2]
[395767066,1764721861322,-500.0,0.00013496,2]
[395767068,1764721861332,-500.0,0.00013496,2]
[395767070,1764721861343,-506.32,0.00013496,2]
[395767072,1764721861352,-572.02,0.00013496,2]